[Event "Titled Tuesday Blitz March 14 Late 2023"]
[White "Erigaisi Arjun"]
[Black "Papasimakopoulos, Alexandros"]
[WhiteFideId "35009192"]
[BlackFideId "4244125"]
[WhiteElo "2737"]
[BlackElo "2359"]
[Result "1-0"]
[Round "02"]
[TimeControl "180+1"]
[Date "2023.03.14"]
[WhiteClock "0:00:40"]
[BlackClock "0:00:01"]

1. b3 {[%clk 0:03:00]}  d5 {[%clk 0:02:46]} 2. Bb2 {[%clk 0:03:01]}  Bf5 {[%clk 0:02:46]} 3. d3 {[%clk 0:03:00]}  e6 {[%clk 0:02:46]} 4. Nd2 {[%clk 0:02:58]}  Nf6 {[%clk 0:02:45]} 5. g3 {[%clk 0:02:59]}  c6 {[%clk 0:02:44]} 6. Bg2 {[%clk 0:02:59]}  h6 {[%clk 0:02:44]} 7. e4 {[%clk 0:02:59]}  Bh7 {[%clk 0:02:36]} 8. Nh3 {[%clk 0:02:59]}  Be7 {[%clk 0:02:31]} 9. O-O {[%clk 0:02:57]}  O-O {[%clk 0:02:29]} 10. Nf4 {[%clk 0:02:57]}  a5 {[%clk 0:02:25]} 11. a3 {[%clk 0:02:56]}  Qc7 {[%clk 0:02:17]} 12. Re1 {[%clk 0:02:54]}  e5 {[%clk 0:02:07]} 13. Nh5 {[%clk 0:02:51]}  d4 {[%clk 0:01:54]} 14. Nxf6+ {[%clk 0:02:32]}  Bxf6 {[%clk 0:01:53]} 15. a4 {[%clk 0:02:31]}  Nd7 {[%clk 0:01:49]} 16. Ba3 {[%clk 0:02:31]}  Rfe8 {[%clk 0:01:43]} 17. Bh3 {[%clk 0:02:31]}  Be7 {[%clk 0:01:42]} 18. Bxe7 {[%clk 0:02:28]}  Rxe7 {[%clk 0:01:43]} 19. Bxd7 {[%clk 0:02:28]}  Qxd7 {[%clk 0:01:38]} 20. Kg2 {[%clk 0:02:27]}  f6 {[%clk 0:01:32]} 21. f4 {[%clk 0:02:20]}  exf4 {[%clk 0:01:28]} 22. gxf4 {[%clk 0:02:21]}  b5 {[%clk 0:01:25]} 23. Qf3 {[%clk 0:02:09]}  Ree8 {[%clk 0:01:16]} 24. h4 {[%clk 0:02:04]}  Bg6 {[%clk 0:01:15]} 25. Kh2 {[%clk 0:02:01]}  Qf7 {[%clk 0:01:09]} 26. Qf2 {[%clk 0:01:56]}  Bh5 {[%clk 0:01:00]} 27. Qxd4 {[%clk 0:01:53]}  Bg4 {[%clk 0:00:57]} 28. Qf2 {[%clk 0:01:44]}  Qe7 {[%clk 0:00:50]} 29. Nf1 {[%clk 0:01:37]}  Qc7 {[%clk 0:00:42]} 30. Ne3 {[%clk 0:01:35]}  Be6 {[%clk 0:00:33]} 31. Qg3 {[%clk 0:01:35]}  Qe7 {[%clk 0:00:26]} 32. Rg1 {[%clk 0:01:30]}  Kh8 {[%clk 0:00:23]} 33. f5 {[%clk 0:01:24]}  Bg8 {[%clk 0:00:22]} 34. Qf4 {[%clk 0:01:25]}  Qe5 {[%clk 0:00:20]} 35. Qxe5 {[%clk 0:01:24]}  Rxe5 {[%clk 0:00:21]} 36. Ng2 {[%clk 0:01:22]}  Bf7 {[%clk 0:00:20]} 37. Nf4 {[%clk 0:01:22]}  Rc5 {[%clk 0:00:20]} 38. Rg2 {[%clk 0:01:20]}  Re5 {[%clk 0:00:18]} 39. Rag1 {[%clk 0:01:19]}  Rg8 {[%clk 0:00:19]} 40. Ra1 {[%clk 0:01:16]}  Ra8 {[%clk 0:00:18]} 41. Kg3 {[%clk 0:01:17]}  Rc5 {[%clk 0:00:16]} 42. Kf3 {[%clk 0:01:15]}  Re5 {[%clk 0:00:16]} 43. Ke3 {[%clk 0:01:14]}  Re7 {[%clk 0:00:16]} 44. Kd4 {[%clk 0:01:10]}  Re5 {[%clk 0:00:13]} 45. Kc3 {[%clk 0:01:07]}  Rc5+ {[%clk 0:00:12]} 46. Kb2 {[%clk 0:01:06]}  Re5 {[%clk 0:00:13]} 47. h5 {[%clk 0:01:04]}  Re7 {[%clk 0:00:07]} 48. axb5 {[%clk 0:00:58]}  cxb5 {[%clk 0:00:07]} 49. Rgg1 {[%clk 0:00:57]}  a4 {[%clk 0:00:06]} 50. bxa4 {[%clk 0:00:56]}  bxa4 {[%clk 0:00:07]} 51. c4 {[%clk 0:00:56]}  Rb7+ {[%clk 0:00:07]} 52. Kc2 {[%clk 0:00:56]}  a3 {[%clk 0:00:07]} 53. Rgb1 {[%clk 0:00:55]}  Rba7 {[%clk 0:00:06]} 54. Ra2 {[%clk 0:00:52]}  Kg8 {[%clk 0:00:05]} 55. Kc3 {[%clk 0:00:51]}  Ra6 {[%clk 0:00:05]} 56. d4 {[%clk 0:00:47]}  Ra4 {[%clk 0:00:05]} 57. d5 {[%clk 0:00:45]}  Rc8 {[%clk 0:00:04]} 58. Rb4 {[%clk 0:00:45]}  Ra7 {[%clk 0:00:04]} 59. Kb3 {[%clk 0:00:43]}  Rca8 {[%clk 0:00:04]} 60. c5 {[%clk 0:00:43]}  Ra6 {[%clk 0:00:04]} 61. Ne6 {[%clk 0:00:42]}  Ra5 {[%clk 0:00:02]} 62. c6 {[%clk 0:00:42]}  Bxe6 {[%clk 0:00:02]} 63. fxe6 {[%clk 0:00:41]}  Kf8 {[%clk 0:00:03]} 64. c7 {[%clk 0:00:38]}  Ke7 {[%clk 0:00:03]} 65. Rb8 {[%clk 0:00:39]}  Rxb8+ {[%clk 0:00:01]} 66. cxb8=Q {[%clk 0:00:40]}  Ra7 {[%clk 0:00:01]} 1-0


[Site "https://www.chess.com"]

[Event "Titled Tuesday Blitz March 14 Late 2023"]
[White "Fajdetic, Hrvoje"]
[Black "Papayan, Oleg"]
[WhiteFideId "14501945"]
[BlackFideId "4193911"]
[WhiteElo "2185"]
[BlackElo "2153"]
[Result "0-1"]
[Round "02"]
[TimeControl "180+1"]
[Date "2023.03.14"]
[WhiteClock "0:00:01"]
[BlackClock "0:00:06"]

1. d4 {[%clk 0:02:59]}  Nf6 {[%clk 0:02:59]} 2. Bf4 {[%clk 0:02:59]}  d5 {[%clk 0:03:00]} 3. e3 {[%clk 0:02:59]}  c5 {[%clk 0:03:01]} 4. Nc3 {[%clk 0:02:59]}  a6 {[%clk 0:03:00]} 5. dxc5 {[%clk 0:02:56]}  Nc6 {[%clk 0:02:52]} 6. Nf3 {[%clk 0:02:52]}  e6 {[%clk 0:02:51]} 7. Na4 {[%clk 0:02:51]}  Ne4 {[%clk 0:02:43]} 8. Nb6 {[%clk 0:02:40]}  Ra7 {[%clk 0:02:43]} 9. Be2 {[%clk 0:02:27]}  Bxc5 {[%clk 0:02:42]} 10. Nxc8 {[%clk 0:02:26]}  Qxc8 {[%clk 0:02:43]} 11. O-O {[%clk 0:02:25]}  O-O {[%clk 0:02:41]} 12. c3 {[%clk 0:02:25]}  b5 {[%clk 0:02:38]} 13. Ne5 {[%clk 0:02:23]}  Rd8 {[%clk 0:02:10]} 14. Bf3 {[%clk 0:02:19]}  Nd6 {[%clk 0:02:00]} 15. Nxc6 {[%clk 0:02:16]}  Qxc6 {[%clk 0:02:01]} 16. a4 {[%clk 0:01:50]}  b4 {[%clk 0:01:49]} 17. cxb4 {[%clk 0:01:45]}  Bxb4 {[%clk 0:01:50]} 18. Qe2 {[%clk 0:01:39]}  Rc8 {[%clk 0:01:34]} 19. h3 {[%clk 0:01:34]}  a5 {[%clk 0:01:31]} 20. Bxd6 {[%clk 0:01:13]}  Bxd6 {[%clk 0:01:27]} 21. e4 {[%clk 0:01:13]}  dxe4 {[%clk 0:01:16]} 22. Bxe4 {[%clk 0:01:14]}  Qc5 {[%clk 0:01:09]} 23. Rfd1 {[%clk 0:01:07]}  Be5 {[%clk 0:01:07]} 24. Rd2 {[%clk 0:00:49]}  Rb8 {[%clk 0:00:43]} 25. Rad1 {[%clk 0:00:45]}  g6 {[%clk 0:00:41]} 26. h4 {[%clk 0:00:40]}  h5 {[%clk 0:00:39]} 27. Rc2 {[%clk 0:00:25]}  Qb4 {[%clk 0:00:19]} 28. Bxg6 {[%clk 0:00:22]}  Bxb2 {[%clk 0:00:17]} 29. Bxf7+ {[%clk 0:00:15]}  Kxf7 {[%clk 0:00:17]} 30. Qxh5+ {[%clk 0:00:15]}  Kg8 {[%clk 0:00:08]} 31. Rdd2 {[%clk 0:00:07]}  Bg7 {[%clk 0:00:07]} 32. Rd3 {[%clk 0:00:01]}  Qb1+ {[%clk 0:00:06]} 0-1


[Site "https://www.chess.com"]

[Event "Titled Tuesday Blitz March 14 Late 2023"]
[White "Fedoseev, Vladimir"]
[Black "Ozates, Tuna"]
[WhiteFideId "24130737"]
[BlackFideId "6354521"]
[WhiteElo "2752"]
[BlackElo "2151"]
[Result "1-0"]
[Round "02"]
[TimeControl "180+1"]
[Date "2023.03.14"]
[WhiteClock "0:00:07"]
[BlackClock "0:00:01"]

1. e4 {[%clk 0:03:00]}  c5 {[%clk 0:02:58]} 2. Nc3 {[%clk 0:02:29]}  Nc6 {[%clk 0:02:56]} 3. g3 {[%clk 0:02:29]}  g6 {[%clk 0:02:57]} 4. Bg2 {[%clk 0:02:29]}  Bg7 {[%clk 0:02:57]} 5. Nge2 {[%clk 0:02:30]}  d6 {[%clk 0:02:57]} 6. O-O {[%clk 0:02:31]}  e6 {[%clk 0:02:43]} 7. d3 {[%clk 0:02:30]}  Nge7 {[%clk 0:02:44]} 8. Be3 {[%clk 0:02:31]}  O-O {[%clk 0:02:44]} 9. d4 {[%clk 0:02:28]}  b6 {[%clk 0:02:38]} 10. e5 {[%clk 0:02:28]}  cxd4 {[%clk 0:02:24]} 11. Nxd4 {[%clk 0:02:27]}  d5 {[%clk 0:02:23]} 12. f4 {[%clk 0:02:23]}  Ba6 {[%clk 0:02:19]} 13. Nxc6 {[%clk 0:02:14]}  Nxc6 {[%clk 0:02:18]} 14. Rf2 {[%clk 0:02:14]}  Rc8 {[%clk 0:02:18]} 15. Ne2 {[%clk 0:02:07]}  Re8 {[%clk 0:02:05]} 16. Nd4 {[%clk 0:02:06]}  Bf8 {[%clk 0:02:02]} 17. c3 {[%clk 0:02:05]}  b5 {[%clk 0:01:37]} 18. Nxc6 {[%clk 0:02:00]}  Rxc6 {[%clk 0:01:36]} 19. Bxa7 {[%clk 0:02:01]}  b4 {[%clk 0:01:37]} 20. cxb4 {[%clk 0:01:52]}  Qc7 {[%clk 0:01:27]} 21. Bd4 {[%clk 0:01:32]}  Bxb4 {[%clk 0:01:25]} 22. a3 {[%clk 0:01:32]}  Bc5 {[%clk 0:01:13]} 23. b4 {[%clk 0:01:32]}  Bxd4 {[%clk 0:01:13]} 24. Qxd4 {[%clk 0:01:33]}  Rc4 {[%clk 0:01:08]} 25. Qb2 {[%clk 0:01:32]}  Rc8 {[%clk 0:01:08]} 26. Bf1 {[%clk 0:01:28]}  Rc6 {[%clk 0:01:00]} 27. b5 {[%clk 0:01:27]}  Rb6 {[%clk 0:00:56]} 28. a4 {[%clk 0:01:27]}  Qc5 {[%clk 0:00:42]} 29. Qa3 {[%clk 0:01:24]}  Qd4 {[%clk 0:00:28]} 30. Ra2 {[%clk 0:00:51]}  Rc3 {[%clk 0:00:20]} 31. Qe7 {[%clk 0:00:50]}  Bb7 {[%clk 0:00:16]} 32. a5 {[%clk 0:00:45]}  Rxb5 {[%clk 0:00:11]} 33. Bxb5 {[%clk 0:00:44]}  Rc1+ {[%clk 0:00:12]} 34. Kg2 {[%clk 0:00:38]}  Qe4+ {[%clk 0:00:04]} 35. Rf3 {[%clk 0:00:37]}  d4 {[%clk 0:00:05]} 36. Qd8+ {[%clk 0:00:15]}  Kg7 {[%clk 0:00:05]} 37. Qf6+ {[%clk 0:00:15]}  Kg8 {[%clk 0:00:05]} 38. Qd8+ {[%clk 0:00:13]}  Kg7 {[%clk 0:00:05]} 39. Be2 {[%clk 0:00:13]}  d3 {[%clk 0:00:03]} 40. Qxd3 {[%clk 0:00:12]}  Qb4 {[%clk 0:00:03]} 41. Qd2 {[%clk 0:00:08]}  Qb1 {[%clk 0:00:03]} 42. Rb2 {[%clk 0:00:07]}  Rg1+ {[%clk 0:00:04]} 43. Kf2 {[%clk 0:00:07]}  Qe4 {[%clk 0:00:02]} 44. Kxg1 {[%clk 0:00:07]}  Qc6 {[%clk 0:00:01]} 45. Kf2 {[%clk 0:00:07]} 1-0


[Site "https://www.chess.com"]

[Event "Titled Tuesday Blitz March 14 Late 2023"]
[White "Fernandez Garcia, Gumersindo"]
[Black "Jimenez, Joaquin"]
[WhiteFideId "24516740"]
[BlackFideId "109860"]
[WhiteElo "2093"]
[BlackElo "2163"]
[Result "1-0"]
[Round "02"]
[TimeControl "180+1"]
[Date "2023.03.14"]
[WhiteClock "0:01:08"]
[BlackClock "0:00:42"]

1. e4 {[%clk 0:03:00]}  e6 {[%clk 0:02:58]} 2. d4 {[%clk 0:02:59]}  d5 {[%clk 0:02:58]} 3. Bd3 {[%clk 0:03:00]}  Nc6 {[%clk 0:02:51]} 4. exd5 {[%clk 0:02:58]}  Qxd5 {[%clk 0:02:51]} 5. Nf3 {[%clk 0:02:57]}  Nf6 {[%clk 0:02:50]} 6. O-O {[%clk 0:02:55]}  Bd7 {[%clk 0:02:48]} 7. c4 {[%clk 0:02:51]}  Qh5 {[%clk 0:02:47]} 8. Nc3 {[%clk 0:02:39]}  O-O-O {[%clk 0:02:44]} 9. a3 {[%clk 0:02:35]}  Kb8 {[%clk 0:02:24]} 10. b4 {[%clk 0:02:34]}  Bc8 {[%clk 0:02:23]} 11. Be3 {[%clk 0:02:31]}  e5 {[%clk 0:02:12]} 12. d5 {[%clk 0:02:27]}  Bg4 {[%clk 0:01:44]} 13. dxc6 {[%clk 0:02:15]}  e4 {[%clk 0:01:44]} 14. Qa4 {[%clk 0:02:14]}  b6 {[%clk 0:01:37]} 15. Bxe4 {[%clk 0:02:11]}  Nxe4 {[%clk 0:01:23]} 16. Nxe4 {[%clk 0:02:12]}  Bxf3 {[%clk 0:01:11]} 17. gxf3 {[%clk 0:02:11]}  Qxf3 {[%clk 0:01:11]} 18. Qa6 {[%clk 0:01:58]}  Qg4+ {[%clk 0:01:04]} 19. Ng3 {[%clk 0:01:57]}  Qc8 {[%clk 0:01:04]} 20. Qxc8+ {[%clk 0:01:55]}  Kxc8 {[%clk 0:01:05]} 21. Rad1 {[%clk 0:01:55]}  Be7 {[%clk 0:01:05]} 22. Nf5 {[%clk 0:01:54]}  Bf6 {[%clk 0:01:05]} 23. Rd5 {[%clk 0:01:53]}  Rde8 {[%clk 0:01:01]} 24. Rfd1 {[%clk 0:01:52]}  Re6 {[%clk 0:01:01]} 25. b5 {[%clk 0:01:52]}  a5 {[%clk 0:00:54]} 26. Rd7 {[%clk 0:01:25]}  Rf8 {[%clk 0:00:49]} 27. Bf4 {[%clk 0:01:25]}  Bd8 {[%clk 0:00:47]} 28. Kf1 {[%clk 0:01:14]}  Rf6 {[%clk 0:00:45]} 29. Rxd8+ {[%clk 0:01:08]}  Rxd8 {[%clk 0:00:41]} 30. Ne7+ {[%clk 0:01:08]}  Kb8 {[%clk 0:00:41]} 31. Rxd8+ {[%clk 0:01:08]}  Ka7 {[%clk 0:00:42]} 32. Bxc7 {[%clk 0:01:08]} 1-0


[Site "https://www.chess.com"]

[Event "Titled Tuesday Blitz March 14 Late 2023"]
[White "Foerster-Yialamas, Lucas"]
[Black "Schmakel, Sam"]
[WhiteFideId "30901774"]
[BlackFideId "2039311"]
[WhiteElo "2067"]
[BlackElo "2356"]
[Result "1-0"]
[Round "02"]
[TimeControl "180+1"]
[Date "2023.03.14"]
[WhiteClock "0:01:18"]
[BlackClock "0:00:06"]

1. e4 {[%clk 0:02:54]}  c5 {[%clk 0:02:59]} 2. Nf3 {[%clk 0:02:53]}  d6 {[%clk 0:02:59]} 3. d4 {[%clk 0:02:54]}  cxd4 {[%clk 0:02:59]} 4. Nxd4 {[%clk 0:02:55]}  Nf6 {[%clk 0:03:00]} 5. Nc3 {[%clk 0:02:56]}  e6 {[%clk 0:03:00]} 6. Bg5 {[%clk 0:02:53]}  Be7 {[%clk 0:02:59]} 7. f4 {[%clk 0:02:51]}  O-O {[%clk 0:02:56]} 8. Qf3 {[%clk 0:02:48]}  Nc6 {[%clk 0:02:56]} 9. O-O-O {[%clk 0:02:47]}  Nxd4 {[%clk 0:02:48]} 10. Rxd4 {[%clk 0:02:48]}  Qa5 {[%clk 0:02:49]} 11. Kb1 {[%clk 0:02:42]}  Rd8 {[%clk 0:02:26]} 12. h4 {[%clk 0:02:34]}  h6 {[%clk 0:02:15]} 13. Bc4 {[%clk 0:02:26]}  Bd7 {[%clk 0:02:15]} 14. Bb3 {[%clk 0:02:24]}  Bc6 {[%clk 0:02:06]} 15. f5 {[%clk 0:02:19]}  e5 {[%clk 0:02:03]} 16. Rdd1 {[%clk 0:02:15]}  Rac8 {[%clk 0:01:48]} 17. g4 {[%clk 0:02:10]}  b5 {[%clk 0:00:53]} 18. Bxf6 {[%clk 0:02:08]}  Bxf6 {[%clk 0:00:53]} 19. Rdg1 {[%clk 0:02:04]}  d5 {[%clk 0:00:37]} 20. exd5 {[%clk 0:02:00]}  b4 {[%clk 0:00:31]} 21. dxc6 {[%clk 0:01:50]}  bxc3 {[%clk 0:00:30]} 22. g5 {[%clk 0:01:48]}  Be7 {[%clk 0:00:24]} 23. g6 {[%clk 0:01:48]}  Kf8 {[%clk 0:00:23]} 24. gxf7 {[%clk 0:01:44]}  Bf6 {[%clk 0:00:22]} 25. Rg6 {[%clk 0:01:41]}  cxb2 {[%clk 0:00:17]} 26. Rhg1 {[%clk 0:01:37]}  Qd2 {[%clk 0:00:15]} 27. Rxf6 {[%clk 0:01:29]}  gxf6 {[%clk 0:00:16]} 28. Rg8+ {[%clk 0:01:25]}  Ke7 {[%clk 0:00:16]} 29. f8=Q+ {[%clk 0:01:18]}  Rxf8 {[%clk 0:00:16]} 30. Rg7+ {[%clk 0:01:18]}  Ke8 {[%clk 0:00:06]} 31. Qh5+ {[%clk 0:01:18]} 1-0


[Site "https://www.chess.com"]

[Event "Titled Tuesday Blitz March 14 Late 2023"]
[White "Fus, Jakub"]
[Black "Bochnicka, Vladimir"]
[WhiteFideId "1193023"]
[BlackFideId "14943450"]
[WhiteElo "2335"]
[BlackElo "2094"]
[Result "1-0"]
[Round "02"]
[TimeControl "180+1"]
[Date "2023.03.14"]
[WhiteClock "0:00:10"]
[BlackClock "0:00:04"]

1. e4 {[%clk 0:02:59]}  c5 {[%clk 0:02:53]} 2. Nf3 {[%clk 0:02:59]}  Nc6 {[%clk 0:02:53]} 3. Bb5 {[%clk 0:02:58]}  e6 {[%clk 0:02:53]} 4. O-O {[%clk 0:02:56]}  Nge7 {[%clk 0:02:53]} 5. Re1 {[%clk 0:02:57]}  a6 {[%clk 0:02:53]} 6. Bf1 {[%clk 0:02:57]}  d5 {[%clk 0:02:53]} 7. exd5 {[%clk 0:02:56]}  Nxd5 {[%clk 0:02:54]} 8. d4 {[%clk 0:02:56]}  Nf6 {[%clk 0:02:54]} 9. Be3 {[%clk 0:02:56]}  cxd4 {[%clk 0:02:54]} 10. Nxd4 {[%clk 0:02:57]}  Bd7 {[%clk 0:02:51]} 11. c4 {[%clk 0:02:57]}  Be7 {[%clk 0:02:48]} 12. Nc3 {[%clk 0:02:56]}  O-O {[%clk 0:02:48]} 13. a3 {[%clk 0:02:54]}  Rc8 {[%clk 0:02:45]} 14. Nxc6 {[%clk 0:02:44]}  Bxc6 {[%clk 0:02:45]} 15. Qc2 {[%clk 0:02:39]}  Qc7 {[%clk 0:02:43]} 16. Rad1 {[%clk 0:02:30]}  Ng4 {[%clk 0:02:42]} 17. g3 {[%clk 0:02:27]}  Nxe3 {[%clk 0:02:42]} 18. Rxe3 {[%clk 0:02:28]}  Rfd8 {[%clk 0:02:37]} 19. Ree1 {[%clk 0:02:24]}  Bf6 {[%clk 0:02:32]} 20. b4 {[%clk 0:02:14]}  Bf3 {[%clk 0:02:23]} 21. Rd3 {[%clk 0:02:03]}  Qc6 {[%clk 0:01:51]} 22. Ne4 {[%clk 0:01:41]}  Bxe4 {[%clk 0:01:44]} 23. Rxe4 {[%clk 0:01:41]}  Rxd3 {[%clk 0:01:34]} 24. Bxd3 {[%clk 0:01:41]}  Rd8 {[%clk 0:01:33]} 25. Re1 {[%clk 0:01:36]}  g6 {[%clk 0:01:28]} 26. Be4 {[%clk 0:01:27]}  Qd7 {[%clk 0:01:19]} 27. c5 {[%clk 0:01:25]}  Bd4 {[%clk 0:01:03]} 28. Bf3 {[%clk 0:01:18]}  e5 {[%clk 0:00:59]} 29. Rc1 {[%clk 0:01:01]}  Kh8 {[%clk 0:00:48]} 30. c6 {[%clk 0:00:58]}  bxc6 {[%clk 0:00:49]} 31. Qxc6 {[%clk 0:00:59]}  Qxc6 {[%clk 0:00:20]} 32. Rxc6 {[%clk 0:01:00]}  Ra8 {[%clk 0:00:20]} 33. Rc7 {[%clk 0:00:47]}  Rb8 {[%clk 0:00:15]} 34. Rxf7 {[%clk 0:00:44]}  a5 {[%clk 0:00:14]} 35. bxa5 {[%clk 0:00:45]}  Rb1+ {[%clk 0:00:14]} 36. Kg2 {[%clk 0:00:45]}  Rb2 {[%clk 0:00:15]} 37. Bc6 {[%clk 0:00:41]}  Ra2 {[%clk 0:00:11]} 38. a4 {[%clk 0:00:40]}  Rc2 {[%clk 0:00:11]} 39. Bb7 {[%clk 0:00:39]}  Ra2 {[%clk 0:00:11]} 40. Bc6 {[%clk 0:00:32]}  Rc2 {[%clk 0:00:11]} 41. Bb7 {[%clk 0:00:26]}  Ra2 {[%clk 0:00:11]} 42. a6 {[%clk 0:00:27]}  Rxa4 {[%clk 0:00:11]} 43. Kf3 {[%clk 0:00:20]}  Ra2 {[%clk 0:00:11]} 44. Ke4 {[%clk 0:00:20]}  Ra4 {[%clk 0:00:11]} 45. Kd5 {[%clk 0:00:20]}  Ra5+ {[%clk 0:00:11]} 46. Kc6 {[%clk 0:00:20]}  Ra2 {[%clk 0:00:11]} 47. f3 {[%clk 0:00:18]}  Rxh2 {[%clk 0:00:09]} 48. g4 {[%clk 0:00:19]}  Rc2+ {[%clk 0:00:09]} 49. Kd7 {[%clk 0:00:19]}  Ra2 {[%clk 0:00:09]} 50. Kc8 {[%clk 0:00:19]}  Kg8 {[%clk 0:00:09]} 51. Rd7 {[%clk 0:00:17]}  Kh8 {[%clk 0:00:09]} 52. Kb8 {[%clk 0:00:17]}  Ra3 {[%clk 0:00:08]} 53. Bc8 {[%clk 0:00:16]}  h6 {[%clk 0:00:08]} 54. a7 {[%clk 0:00:14]}  Rb3+ {[%clk 0:00:04]} 55. Bb7 {[%clk 0:00:11]}  Bxa7+ {[%clk 0:00:03]} 56. Kxa7 {[%clk 0:00:11]}  h5 {[%clk 0:00:03]} 57. gxh5 {[%clk 0:00:12]}  g5 {[%clk 0:00:04]} 58. Be4 {[%clk 0:00:11]}  Rb4 {[%clk 0:00:03]} 59. h6 {[%clk 0:00:10]}  g4 {[%clk 0:00:03]} 60. Bg6 {[%clk 0:00:10]}  gxf3 {[%clk 0:00:04]} 61. Rd8# {[%clk 0:00:10]} 1-0


[Site "https://www.chess.com"]

[Event "Titled Tuesday Blitz March 14 Late 2023"]
[White "Gallegos Diaz, Carlos Alberto"]
[Black "Bilych, Olexiy"]
[WhiteFideId "3900886"]
[BlackFideId "14156504"]
[WhiteElo "2362"]
[BlackElo "2320"]
[Result "0-1"]
[Round "02"]
[TimeControl "180+1"]
[Date "2023.03.14"]
[WhiteClock "0:00:12"]
[BlackClock "0:00:27"]

1. e4 {[%clk 0:03:00]}  c5 {[%clk 0:02:59]} 2. Nf3 {[%clk 0:03:00]}  e6 {[%clk 0:03:00]} 3. d3 {[%clk 0:03:00]}  Nc6 {[%clk 0:02:59]} 4. Nbd2 {[%clk 0:03:00]}  g6 {[%clk 0:02:58]} 5. Be2 {[%clk 0:03:01]}  Bg7 {[%clk 0:02:58]} 6. O-O {[%clk 0:03:01]}  Nge7 {[%clk 0:02:59]} 7. c3 {[%clk 0:03:01]}  O-O {[%clk 0:02:59]} 8. Re1 {[%clk 0:03:02]}  b6 {[%clk 0:02:58]} 9. Bf1 {[%clk 0:03:02]}  d6 {[%clk 0:02:56]} 10. Nb3 {[%clk 0:02:58]}  d5 {[%clk 0:02:43]} 11. exd5 {[%clk 0:02:53]}  Nxd5 {[%clk 0:02:42]} 12. d4 {[%clk 0:02:53]}  cxd4 {[%clk 0:02:41]} 13. Nbxd4 {[%clk 0:02:53]}  Nxd4 {[%clk 0:02:39]} 14. Nxd4 {[%clk 0:02:52]}  Bb7 {[%clk 0:02:40]} 15. g3 {[%clk 0:02:46]}  Qc7 {[%clk 0:02:29]} 16. Bg2 {[%clk 0:02:40]}  Rad8 {[%clk 0:02:28]} 17. Bg5 {[%clk 0:02:38]}  Rd7 {[%clk 0:02:25]} 18. Qa4 {[%clk 0:02:34]}  a6 {[%clk 0:02:21]} 19. Rad1 {[%clk 0:02:31]}  b5 {[%clk 0:02:21]} 20. Qb3 {[%clk 0:02:30]}  h6 {[%clk 0:02:17]} 21. Bc1 {[%clk 0:02:27]}  Qc4 {[%clk 0:02:15]} 22. Qxc4 {[%clk 0:02:17]}  bxc4 {[%clk 0:02:15]} 23. Nc2 {[%clk 0:02:17]}  Rc7 {[%clk 0:02:08]} 24. Ne3 {[%clk 0:01:53]}  Nxe3 {[%clk 0:02:08]} 25. Bxe3 {[%clk 0:01:51]}  Bxg2 {[%clk 0:02:08]} 26. Kxg2 {[%clk 0:01:51]}  Rb7 {[%clk 0:02:08]} 27. Re2 {[%clk 0:01:45]}  Rfb8 {[%clk 0:02:07]} 28. Rdd2 {[%clk 0:01:34]}  g5 {[%clk 0:02:04]} 29. g4 {[%clk 0:01:27]}  a5 {[%clk 0:02:02]} 30. a4 {[%clk 0:01:21]}  Bf6 {[%clk 0:01:50]} 31. Bc5 {[%clk 0:01:14]}  Kg7 {[%clk 0:01:46]} 32. Re4 {[%clk 0:01:00]}  Rxb2 {[%clk 0:01:44]} 33. Rxb2 {[%clk 0:00:59]}  Rxb2 {[%clk 0:01:45]} 34. Rxc4 {[%clk 0:00:59]}  Rc2 {[%clk 0:01:41]} 35. Bb6 {[%clk 0:00:25]}  Rxc3 {[%clk 0:01:39]} 36. Rxc3 {[%clk 0:00:23]}  Bxc3 {[%clk 0:01:39]} 37. Kf3 {[%clk 0:00:24]}  f5 {[%clk 0:01:38]} 38. h3 {[%clk 0:00:23]}  Kf6 {[%clk 0:01:38]} 39. Bc7 {[%clk 0:00:22]}  Kg6 {[%clk 0:01:26]} 40. Ke3 {[%clk 0:00:21]}  h5 {[%clk 0:01:26]} 41. f3 {[%clk 0:00:21]}  hxg4 {[%clk 0:01:24]} 42. hxg4 {[%clk 0:00:21]}  Kf6 {[%clk 0:01:23]} 43. Kd3 {[%clk 0:00:20]}  Be1 {[%clk 0:01:20]} 44. Kd4 {[%clk 0:00:19]}  Bd2 {[%clk 0:01:06]} 45. Be5+ {[%clk 0:00:18]}  Ke7 {[%clk 0:01:06]} 46. Kc5 {[%clk 0:00:18]}  Kd7 {[%clk 0:01:05]} 47. Kb5 {[%clk 0:00:17]}  Ke7 {[%clk 0:00:49]} 48. Kc5 {[%clk 0:00:16]}  Bb4+ {[%clk 0:00:48]} 49. Kb5 {[%clk 0:00:15]}  Be1 {[%clk 0:00:48]} 50. Kc5 {[%clk 0:00:15]}  Bd2 {[%clk 0:00:48]} 51. Kc6 {[%clk 0:00:14]}  Bb4 {[%clk 0:00:43]} 52. Kb5 {[%clk 0:00:14]}  Bd6 {[%clk 0:00:41]} 53. Bc3 {[%clk 0:00:13]}  Bc7 {[%clk 0:00:41]} 54. Kc6 {[%clk 0:00:13]}  Bd8 {[%clk 0:00:41]} 55. Be5 {[%clk 0:00:12]}  Kf7 {[%clk 0:00:41]} 56. Kd7 {[%clk 0:00:12]}  Bf6 {[%clk 0:00:41]} 57. Bc7 {[%clk 0:00:11]}  Bc3 {[%clk 0:00:41]} 58. Bd8 {[%clk 0:00:11]}  Bd2 {[%clk 0:00:37]} 59. Be7 {[%clk 0:00:11]}  fxg4 {[%clk 0:00:26]} 60. fxg4 {[%clk 0:00:12]}  e5 {[%clk 0:00:27]} 61. Bc5 {[%clk 0:00:12]}  e4 {[%clk 0:00:27]} 62. Kd6 {[%clk 0:00:12]}  e3 {[%clk 0:00:27]} 0-1


[Site "https://www.chess.com"]

[Event "Titled Tuesday Blitz March 14 Late 2023"]
[White "Gatterer, Florian"]
[Black "Bortnyk, Olexandr"]
[WhiteFideId "811688"]
[BlackFideId "14120828"]
[WhiteElo "2221"]
[BlackElo "2734"]
[Result "0-1"]
[Round "02"]
[TimeControl "180+1"]
[Date "2023.03.14"]
[WhiteClock "0:00:07"]
[BlackClock "0:01:35"]

1. Nf3 {[%clk 0:03:00]}  Nf6 {[%clk 0:02:57]} 2. g3 {[%clk 0:03:01]}  g6 {[%clk 0:02:57]} 3. b3 {[%clk 0:03:01]}  Bg7 {[%clk 0:02:58]} 4. Bb2 {[%clk 0:03:02]}  O-O {[%clk 0:02:59]} 5. Bg2 {[%clk 0:03:01]}  d6 {[%clk 0:02:59]} 6. d4 {[%clk 0:03:02]}  a5 {[%clk 0:03:00]} 7. c4 {[%clk 0:02:57]}  a4 {[%clk 0:03:00]} 8. Nc3 {[%clk 0:02:56]}  a3 {[%clk 0:03:00]} 9. Bc1 {[%clk 0:02:56]}  c5 {[%clk 0:03:01]} 10. e3 {[%clk 0:02:51]}  cxd4 {[%clk 0:02:57]} 11. Nxd4 {[%clk 0:02:47]}  Bg4 {[%clk 0:02:45]} 12. Qc2 {[%clk 0:02:33]}  Qb6 {[%clk 0:02:43]} 13. h3 {[%clk 0:02:28]}  Bd7 {[%clk 0:02:42]} 14. O-O {[%clk 0:02:28]}  Nc6 {[%clk 0:02:42]} 15. Nxc6 {[%clk 0:02:10]}  Bxc6 {[%clk 0:02:39]} 16. Bxc6 {[%clk 0:01:59]}  Qxc6 {[%clk 0:02:38]} 17. Rb1 {[%clk 0:01:59]}  d5 {[%clk 0:02:35]} 18. Nb5 {[%clk 0:01:39]}  dxc4 {[%clk 0:02:29]} 19. bxc4 {[%clk 0:01:30]}  Rfc8 {[%clk 0:02:18]} 20. Nxa3 {[%clk 0:01:20]}  Ne4 {[%clk 0:02:18]} 21. h4 {[%clk 0:01:12]}  g5 {[%clk 0:02:01]} 22. h5 {[%clk 0:01:06]}  g4 {[%clk 0:02:00]} 23. Qd3 {[%clk 0:00:58]}  Rd8 {[%clk 0:01:59]} 24. Qe2 {[%clk 0:00:19]}  Ng5 {[%clk 0:01:58]} 25. e4 {[%clk 0:00:20]}  Nf3+ {[%clk 0:01:49]} 26. Kg2 {[%clk 0:00:18]}  Rd4 {[%clk 0:01:46]} 27. Nb5 {[%clk 0:00:13]}  Rxe4 {[%clk 0:01:45]} 28. Be3 {[%clk 0:00:13]}  Rxe3 {[%clk 0:01:34]} 29. Qxe3 {[%clk 0:00:10]}  Nh4+ {[%clk 0:01:34]} 30. Kh2 {[%clk 0:00:07]}  Qg2# {[%clk 0:01:35]} 0-1


[Site "https://www.chess.com"]